fUST/lending_fUST_20250811
["ID","MTS","AMOUNT","RATE_DAILY","PERIOD"]
[378524902,1754896240391,-461.69158338,0.000236,7]
[378524903,1754896240400,-215.4905783,0.000236,7]
[378524904,1754896240570,-527.9539256,0.000236,7]
[378524905,1754896240584,-160.0,0.000236,7]
[378524906,1754896240594,-291.1,0.00023619,3]
[378524907,1754896240603,-290.0,0.00023694,2]
[378524908,1754896240613,-268.351987,0.0002371,15]
[378524909,1754896240622,-14729.50921258,0.0002372,2]
[378524910,1754896240632,-151.0,0.00023759,2]
[378524911,1754896240641,-151.0,0.00023759,2]
[378524912,1754896240651,-151.0,0.00023759,2]
[378524913,1754896240660,-154.92498305,0.00023759,2]
[378524914,1754896240669,-151.0,0.00023759,2]
[378524915,1754896240679,-151.0,0.00023759,2]
[378524916,1754896240688,-151.0,0.00023759,2]
[378524917,1754896240697,-1982.83367616,0.00023775,2]
[378524918,1754896240706,-14729.50921258,0.00023776,2]
[378524919,1754896240716,-500.0,0.0002378,2]
[378524920,1754896240725,-500.0,0.0002378,2]
[378524921,1754896240735,-500.0,0.0002378,2]
[378524922,1754896240744,-290.0,0.00023796,2]
[378524923,1754896240754,-339.42,0.000238,5]
[378524924,1754896240764,-268.351987,0.000238,8]
[378524925,1754896240774,-290.0,0.00023819,2]
[378524926,1754896240785,-290.0,0.00023882,2]
[378524927,1754896240794,-268.351987,0.0002389,7]
[378524928,1754896240805,-13703.16413436,0.000239,2]
[378524929,1754896240815,-600.0,0.00023904,2]
[378524930,1754896240825,-166.0,0.00023918,11]
[378524931,1754896240835,-291.1,0.00023939,3]
[378524932,1754896240845,-150.0,0.00023969,2]
[378524933,1754896240854,-500.0,0.00023973,2]
[378524934,1754896240864,-500.0,0.00023973,2]
[378524935,1754896240873,-500.0,0.00023973,2]
[378524936,1754896240882,-500.0,0.00023973,2]
[378524937,1754896240891,-612.83555691,0.00023973,2]
[378524938,1754896240901,-600.0,0.00023973,2]
[378524939,1754896240910,-500.0,0.00023973,2]
[378524940,1754896240920,-500.0,0.00023973,2]
[378524941,1754896240929,-500.67424642,0.00023973,2]
[378524942,1754896240939,-459.83092009,0.00023973,2]
[378524943,1754896240948,-500.0,0.00023973,2]
[378524944,1754896240957,-158.46341349,0.00023973,2]
[378524945,1754896240967,-500.0,0.00023973,2]
[378524946,1754896240976,-158.46401038,0.00023973,2]
[378524947,1754896240985,-248.49009127,0.00023973,2]
[378524948,1754896240994,-500.0,0.00023973,2]
[378524949,1754896241004,-500.0,0.00023973,2]
[378524950,1754896241014,-501.39986974,0.00023973,2]
[378524951,1754896241023,-500.0,0.00023973,2]
[378524952,1754896241032,-500.0,0.00023973,2]
[378524953,1754896241041,-500.0,0.00023973,2]
[378524954,1754896241051,-500.0,0.00023973,2]
[378524955,1754896241060,-501.71607261,0.00023973,2]
[378524956,1754896241070,-500.0,0.00023973,2]
[378524957,1754896241079,-500.0,0.00023973,2]
[378524958,1754896241088,-500.49069383,0.00023973,2]
[378524959,1754896241098,-500.0,0.00023973,2]
[378524960,1754896241107,-500.0,0.00023973,2]
[378524961,1754896241117,-500.0,0.00023973,2]
[378524962,1754896241126,-500.0,0.00023973,2]
[378524963,1754896241135,-500.0,0.00023973,2]
[378524964,1754896241145,-500.0,0.00023973,2]
[378524965,1754896241154,-500.0,0.00023973,2]
[378524966,1754896241163,-500.0,0.00023973,2]
[378524967,1754896241173,-500.0,0.00023973,2]
[378524968,1754896241183,-500.0,0.00023973,2]
[378524969,1754896241193,-500.0,0.00023973,2]
[378524970,1754896241203,-500.78623683,0.00023973,2]
[378524971,1754896241212,-500.0,0.00023973,2]
[378524972,1754896241222,-574.589025,0.00023973,2]
[378524973,1754896241232,-500.0,0.00023973,2]
[378524974,1754896241242,-420.41389619,0.00023973,2]
[378524975,1754896241251,-500.0,0.00023973,2]
[378524976,1754896241261,-500.0,0.00023973,2]
[378524977,1754896241271,-500.0,0.00023973,2]
[378524978,1754896241280,-500.0,0.00023973,2]
[378524979,1754896241291,-500.0,0.00023973,2]
[378524980,1754896241301,-500.0,0.00023973,2]
[378524981,1754896241310,-268.351987,0.00023978,15]
[378524982,1754896241320,-294.64,0.0002398,3]
[378524983,1754896241329,-883.96,0.0002398,3]
[378524984,1754896241338,-290.0,0.0002399,2]
[378524985,1754896241347,-100000.0,0.0002399,2]
[378524986,1754896241357,-136.61026308,0.00024,10]
[378524987,1754896241366,-268.351987,0.00024,10]
[378524988,1754896241375,-66206.06,0.00024,7]
[378524989,1754896241385,-19900.23,0.00024,7]
[378524990,1754896241395,-216.68257536,0.00024,7]
[378524991,1754896241404,-216.68257536,0.00024,7]
[378524992,1754896241414,-160.0,0.00024,7]
[378524993,1754896241423,-160.0,0.00024,7]
[378524994,1754896241433,-417.15472785,0.00024,7]
[378524995,1754896241441,-231.9940742,0.00024,7]
[378524996,1754896241451,-231.9940742,0.00024,7]
[378524997,1754896241460,-160.0,0.00024,7]
[378524998,1754896241470,-12671.21867243,0.00024,7]
[378524999,1754896241479,-461.69158338,0.00024,7]
[378525000,1754896241488,-215.4905783,0.00024,7]
[378525001,1754896241498,-215.4905783,0.00024,3]
[378525002,1754896241507,-843.18994796,0.00024,7]
[378525003,1754896241516,-843.18994796,0.00024,7]
[378525004,1754896241525,-160.0,0.00024,7]
[378525005,1754896241534,-160.0,0.00024,7]
[378525006,1754896241543,-160.0,0.00024,7]
[378525007,1754896241552,-160.0,0.00024,7]
[378525008,1754896241562,-527.9539256,0.00024,7]
[378525009,1754896241572,-160.0,0.00024,7]
[378525010,1754896241585,-360.0,0.00024029,2]
[378525011,1754896241595,-198.0,0.00024033,2]
[378525012,1754896241604,-151.0,0.00024033,2]
[378525013,1754896241613,-151.0,0.00024033,2]
[378525014,1754896241623,-226.8236247,0.00024033,2]
[378525015,1754896241632,-180.92421382,0.00024033,2]
[378525016,1754896241641,-290.0,0.00024034,2]
[378525017,1754896241650,-268.351987,0.0002404,8]
[378525018,1754896241661,-1982.83367616,0.0002405,2]
[378525019,1754896241670,-2500.0,0.00024128,2]
[378525020,1754896241680,-290.0,0.0002413,2]
[378525021,1754896241689,-600.0,0.00024153,2]
[378525022,1754896241699,-290.0,0.00024213,2]
[378525023,1754896241708,-268.351987,0.00024245,15]
[378525024,1754896241717,-291.1,0.00024259,3]
[378525025,1754896241726,-268.351987,0.0002428,8]
[378525026,1754896241736,-249.57098955,0.00024307,2]
[378525027,1754896241746,-151.0,0.00024307,2]
[378525028,1754896241755,-1982.83367616,0.00024325,2]
[378525029,1754896241764,-928.51014532,0.00024328,2]
[378525030,1754896241774,-1000.0,0.00024328,2]
[378525031,1754896241784,-1000.0,0.00024328,2]
[378525032,1754896241793,-1000.0,0.00024328,2]
[378525033,1754896241802,-290.0,0.00024397,2]
[378525034,1754896241812,-3573.91631576,0.000244,2]
[378525035,1754896241822,-13703.16413435,0.000244,2]
[378525036,1754896241832,-600.0,0.00024402,2]
[378525037,1754896241842,-290.0,0.00024466,2]
[378525038,1754896241851,-268.351987,0.0002452,8]
[378525039,1754896241860,-1000.0,0.00024521,2]
[378525040,1754896241870,-1000.0,0.00024521,2]
[378525041,1754896241880,-1000.0,0.00024521,2]
[378525042,1754896241889,-1000.0,0.00024521,2]
[378525043,1754896241898,-1200.0,0.00024521,2]
[378525044,1754896241907,-1000.0,0.00024521,2]
[378525045,1754896241917,-1000.0,0.00024521,2]
[378525046,1754896241926,-1000.0,0.00024521,2]
[378525047,1754896241936,-500.0,0.00024521,2]
[378525048,1754896241945,-1000.0,0.00024521,2]
[378525049,1754896241954,-500.0,0.00024521,2]
[378525050,1754896241963,-501.68469329,0.00024521,2]
[378525051,1754896241973,-1001.19910643,0.00024521,2]
[378525052,1754896241982,-500.0,0.00024521,2]
[378525053,1754896241991,-1000.0,0.00024521,2]
[378525054,1754896242001,-152.41906297,0.00024521,2]
[378525055,1754896242010,-1000.0,0.00024521,2]
[378525056,1754896242019,-1000.0,0.00024521,2]
[378525057,1754896242028,-500.0,0.00024521,2]
[378525058,1754896242037,-501.19670282,0.00024521,2]
[378525059,1754896242047,-1000.0,0.00024521,2]
[378525060,1754896242056,-193.51165643,0.00024521,2]
[378525061,1754896242065,-949.27177297,0.00024521,2]
[378525062,1754896242074,-164.91958653,0.00024521,2]
[378525063,1754896242083,-548.50500087,0.00024521,2]
[378525064,1754896242093,-568.94013335,0.00024521,2]
[378525065,1754896242102,-500.0,0.00024521,2]
[378525066,1754896242111,-1000.0,0.00024521,2]
[378525067,1754896242120,-1000.0,0.00024521,2]
[378525068,1754896242130,-220.72400512,0.00024521,2]
[378525069,1754896242139,-460.0,0.00024577,2]
[378525070,1754896242149,-268.351987,0.00024578,7]
[378525071,1754896242158,-291.1,0.0002458,3]
[378525072,1754896242167,-417.15472785,0.0002458,7]
[378525073,1754896242177,-231.9940742,0.0002458,7]
[378525074,1754896242187,-193.66112232,0.00024581,2]
[378525075,1754896242196,-1982.83367616,0.000246,2]
[378525076,1754896242205,-290.0,0.000246,2]
[378525077,1754896242214,-268.351987,0.00024606,2]
[378525078,1754896242225,-151678.00496592,0.00024648,2]
[378525079,1754896242323,-14907.16452687,0.00024648,2]
[378525080,1754896242332,-151.0,0.00024648,7]
[378525081,1754896242341,-250.680846,0.00024648,7]
[378525082,1754896242351,-250.680846,0.00024648,7]
[378525083,1754896242361,-268.351987,0.00024649,5]
[378525084,1754896242370,-268.351987,0.00024649,5]
[378525085,1754896242379,-268.351987,0.00024649,5]
[378525086,1754896242388,-268.351987,0.00024649,5]
[378525087,1754896242397,-268.351987,0.00024649,5]
[378525088,1754896242407,-77772.29232423,0.0002465,2]
[378525089,1754896242416,-1082.87898395,0.0002465,2]
[378525090,1754896242427,-151.0,0.0002465,7]
[378525091,1754896242437,-151.0,0.0002465,7]
[378525092,1754896242447,-254.27202,0.0002465,7]
[378525093,1754896242456,-151.0,0.0002465,7]
[378525094,1754896242466,-368.858743,0.0002465,7]
[378525095,1754896242475,-499.9455,0.0002465,7]
[378525096,1754896242485,-368.858743,0.0002465,7]
[378525097,1754896242494,-499.9455,0.0002465,7]
[378525098,1754896242504,-151.0,0.0002465,7]
[378525099,1754896242514,-151.0,0.0002465,7]
[378525100,1754896242524,-590.222571,0.0002465,7]
[378525101,1754896242533,-590.222571,0.0002465,7]
[378525102,1754896242542,-151.0,0.0002465,7]
[378525103,1754896242552,-216.473572,0.0002465,7]
[378525104,1754896242561,-151.0,0.0002465,7]
[378525105,1754896242570,-408.400801,0.0002465,7]
[378525106,1754896242584,-408.400801,0.0002465,7]
[378525107,1754896242593,-151.0,0.0002465,7]
[378525108,1754896242602,-283.708424,0.0002465,7]
[378525109,1754896242611,-283.708424,0.0002465,7]
[378525110,1754896242623,-151.0,0.0002465,7]
[378525111,1754896242632,-159.831988,0.0002465,7]
[378525112,1754896242641,-159.831988,0.0002465,7]
[378525113,1754896242651,-405.486746,0.0002465,7]
[378525114,1754896242660,-405.486746,0.0002465,7]
[378525115,1754896242670,-151.0,0.0002465,7]
[378525116,1754896242679,-151.0,0.0002465,7]
[378525118,1754896242688,-151.0,0.0002465,7]
[378525119,1754896242697,-151.0,0.0002465,7]
[378525120,1754896242706,-221.747255,0.0002465,7]
[378525121,1754896242716,-221.747255,0.0002465,7]
[378525122,1754896242726,-367.613199,0.0002465,7]
[378525123,1754896242735,-367.613199,0.0002465,7]
[378525124,1754896242744,-793.744897,0.0002465,7]
[378525125,1754896242754,-793.744897,0.0002465,7]
[378525126,1754896242764,-192.600626,0.0002465,7]
[378525127,1754896242773,-192.600626,0.0002465,7]
[378525128,1754896242783,-216.68257536,0.0002465,7]
[378525129,1754896242792,-160.0,0.0002465,7]
[378525130,1754896242801,-600.0,0.00024651,2]
[378525131,1754896242811,-268.351987,0.00024657,4]
[378525132,1754896242820,-268.351987,0.00024657,4]
[378525133,1754896242829,-268.351987,0.00024657,4]
[378525134,1754896242839,-268.351987,0.00024657,4]
[378525135,1754896242848,-268.351987,0.00024657,4]
[378525136,1754896242857,-151.0,0.00024658,7]
[378525137,1754896242867,-151.0,0.00024658,7]
[378525138,1754896242875,-151.0,0.00024658,7]
[378525139,1754896242885,-151.0,0.00024658,7]
[378525140,1754896242894,-151.0,0.00024658,7]
[378525141,1754896242904,-151.0,0.00024658,7]
[378525142,1754896242913,-151.0,0.00024658,7]
[378525143,1754896242922,-151.0,0.00024658,7]
[378525144,1754896242931,-151.0,0.00024658,7]
[378525145,1754896242940,-151.0,0.00024658,7]
[378525146,1754896242949,-380.0,0.00024658,2]
[378525147,1754896242958,-200.0,0.00024658,15]
[378525148,1754896242968,-151.0,0.00024658,2]
[378525149,1754896242977,-522.0,0.00024658,2]
[378525150,1754896242987,-522.42955676,0.00024658,2]
[378525151,1754896242996,-5888.0,0.00024668,2]
[378525152,1754896243005,-535.9525052,0.00024673,2]
[378525153,1754896243015,-500.0,0.00024673,2]
[378525154,1754896243024,-500.0,0.00024673,2]
[378525155,1754896243034,-500.0,0.00024673,2]
[378525156,1754896243043,-150.0,0.00024673,2]
[378525157,1754896243052,-500.0,0.00024673,2]
[378525159,1754896243062,-500.24729121,0.00024673,2]
[378525160,1754896243072,-500.0,0.00024673,2]
[378525161,1754896243081,-500.0,0.00024673,2]
[378525162,1754896243091,-505.589476,0.00024673,2]
[378525163,1754896243100,-151.0,0.00024673,7]
[378525164,1754896243109,-151.0,0.00024673,7]
[378525165,1754896243119,-151.0,0.00024673,7]
[378525166,1754896243128,-151.0,0.00024673,7]
[378525167,1754896243137,-3000.0,0.00024676,2]
[378525169,1754896243147,-151.0,0.000247,10]
[378525170,1754896243156,-151.0,0.000247,10]
[378525172,1754896243166,-151.0,0.000247,10]
[378525174,1754896243175,-151.0,0.000247,10]
[378525176,1754896243184,-46641.88,0.000247,2]
[378525178,1754896243193,-151.0,0.000247,7]
[378525179,1754896243203,-9354.4,0.000247,7]
[378525181,1754896243212,-151.0,0.000247,7]
[378525183,1754896243222,-10000.0,0.000247,2]
[378525185,1754896243231,-250.680846,0.000247,7]
[378525187,1754896243240,-250.680846,0.000247,7]
[378525188,1754896243249,-268.351987,0.0002476,8]
[378525190,1754896243258,-326.93146424,0.00024773,2]
[378525192,1754896243271,-173.06853576,0.00024773,2]
[378525194,1754896243280,-518.84386618,0.000248,2]
[378525196,1754896243292,-1481.15613382,0.000248,2]
[378525198,1754896243301,-152.010579,0.000248,7]
[378525200,1754896243311,-254.611427,0.000248,7]
[378525201,1754896243320,-151.0,0.000248,7]
[378525203,1754896243330,-368.858743,0.000248,7]
[378525205,1754896243339,-368.858743,0.000248,7]
[378525207,1754896243348,-590.222571,0.000248,7]
[378525209,1754896243357,-498.98936169,0.000248,7]
[378525211,1754896243369,-91.23320931,0.000248,7]
[378525212,1754896243378,-151.0,0.000248,7]
[378525214,1754896243387,-151.0,0.000248,7]
[378525216,1754896243397,-159.831988,0.000248,7]
[378525218,1754896243406,-159.831988,0.000248,7]
[378525219,1754896243415,-151.0,0.000248,7]
[378525221,1754896243424,-151.0,0.000248,7]
[378525223,1754896243433,-367.613199,0.000248,7]
[378525225,1754896243442,-367.613198,0.000248,7]
[378525227,1754896243452,-192.600626,0.000248,7]
[378525228,1754896243462,-192.600626,0.000248,7]
[378525230,1754896243472,-151.0,0.000248,5]
[378525232,1754896243482,-151.0,0.000248,8]
[378525234,1754896243491,-151.0,0.000248,9]
[378525236,1754896243500,-151.0,0.000248,10]
[378525237,1754896243510,-151.0,0.000248,8]
[378525239,1754896243519,-151.0,0.000248,9]
[378525241,1754896243529,-151.0,0.000248,7]
[378525243,1754896243538,-151.97109,0.000248,7]
[378525245,1754896243548,-151.0,0.000248,7]
[378525247,1754896243557,-9704.86978455,0.000248,2]
[378525248,1754896243566,-5132.83429114,0.000248,2]
[378525249,1754896243581,-645.59995964,0.000248,2]
[378525252,1754896243679,-2192.94,0.00021771,10]
[378525253,1754896243689,-3906.56370112,0.000248,2]
[378525272,1754896246908,-31689.3181498,0.000248,2]
[378525273,1754896246918,-151.0,0.000248,7]
[378525274,1754896246928,-151.0,0.000248,7]
[378525275,1754896246938,-151.0,0.000248,7]
[378525276,1754896246948,-500.0,0.000248,2]
[378525277,1754896247092,-250.0,0.00024804,2]
[378525278,1754896247102,-2298.57311676,0.00024863,2]
[378525279,1754896247112,-500.0,0.00024873,2]
[378525280,1754896247122,-509.5504893,0.00024873,2]
[378525281,1754896247132,-502.35286104,0.00024873,2]
[378525282,1754896247142,-150.0,0.00024873,2]
[378525283,1754896247152,-150.0,0.00024873,2]
[378525284,1754896247162,-150.0,0.00024873,2]
[378525285,1754896247171,-151.0,0.00024873,7]
[378525286,1754896247181,-724.821997,0.00024873,7]
[378525287,1754896247190,-724.821997,0.00024873,7]
[378525288,1754896247201,-151.0,0.00024873,7]
[378525289,1754896247211,-506.1118035,0.00024876,2]
[378525290,1754896247221,-1500.0,0.00024876,2]
[378525291,1754896247231,-1508.88656731,0.000249,2]
[378525292,1754896247241,-151.0,0.000249,7]
[378525293,1754896247251,-368.858743,0.000249,7]
[378525294,1754896247261,-499.9455,0.000249,7]
[378525295,1754896247270,-368.858743,0.000249,7]
[378525296,1754896247279,-499.9455,0.000249,7]
[378525297,1754896247289,-151.0,0.000249,7]
[378525298,1754896247298,-151.0,0.000249,7]
[378525299,1754896247308,-590.222571,0.000249,7]
[378525300,1754896247317,-590.222574,0.000249,7]
[378525301,1754896247327,-151.0,0.000249,7]
[378525302,1754896247336,-151.0,0.000249,7]
[378525303,1754896247346,-408.400801,0.000249,7]
[378525304,1754896247356,-408.400801,0.000249,7]
[378525305,1754896247365,-181.2,0.000249,7]
[378525306,1754896247375,-151.0,0.000249,7]
[378525307,1754896247384,-151.0,0.000249,7]
[378525308,1754896247394,-283.708424,0.000249,7]
[378525309,1754896247404,-283.708424,0.000249,7]
[378525310,1754896247413,-151.0,0.000249,7]
[378525311,1754896247423,-159.831988,0.000249,7]
[378525312,1754896247432,-159.831988,0.000249,7]
[378525313,1754896247442,-405.486746,0.000249,7]
[378525314,1754896247451,-405.486746,0.000249,7]
[378525315,1754896247460,-151.0,0.000249,7]
[378525316,1754896247469,-151.0,0.000249,7]
[378525317,1754896247479,-151.0,0.000249,7]
[378525318,1754896247489,-221.747255,0.000249,7]
[378525319,1754896247498,-221.747255,0.000249,7]
[378525320,1754896247508,-793.744897,0.000249,7]
[378525321,1754896247517,-793.744897,0.000249,7]
[378525322,1754896247527,-793.744897,0.000249,7]
[378525323,1754896247537,-793.744894,0.000249,7]
[378525324,1754896247546,-192.600626,0.000249,7]
[378525325,1754896247557,-192.600626,0.000249,7]
[378525326,1754896247567,-151.0,0.000249,5]
[378525327,1754896247577,-151.0,0.000249,7]
[378525328,1754896247588,-151.0,0.000249,7]
[378525329,1754896247597,-609.899633,0.000249,7]
[378525330,1754896247608,-609.899633,0.000249,7]
[378525331,1754896247618,-609.899633,0.000249,7]
[378525332,1754896247629,-609.899633,0.000249,7]
[378525333,1754896247638,-151.0,0.000249,7]
[378525334,1754896247648,-151.0,0.000249,7]
[378525335,1754896247660,-154.308845,0.000249,7]
[378525336,1754896247670,-151.0,0.000249,10]
[378525337,1754896247679,-151.0,0.000249,5]
[378525338,1754896247689,-268.351987,0.000249,10]
[378525339,1754896247698,-151.0,0.000249,7]
[378525340,1754896247708,-600.0,0.000249,2]
[378525341,1754896247717,-278.941149,0.000249,7]
[378525342,1754896247727,-724.821997,0.000249,7]
[378525343,1754896247736,-724.821997,0.000249,7]
[378525344,1754896247747,-151.0,0.000249,7]
[378525345,1754896247756,-291.1,0.000249,3]
[378525346,1754896247765,-151.0,0.000249,7]
[378525347,1754896247775,-688667.02567898,0.000249,2]
[378525349,1754896295027,498.0,0.00030137,120]
[378525350,1754896295502,460.0,0.0003136,30]
[378525351,1754896295824,460.0,0.0003136,30]
[378525352,1754896296300,460.0,0.0003136,30]
[378525353,1754896296643,460.0,0.0003136,30]
[378525354,1754896297637,460.0,0.0003136,30]
[378525355,1754896298073,460.0,0.0003136,30]
[378525356,1754896298268,460.0,0.0003136,30]
[378525357,1754896298404,509.66,0.0003136,30]
[378525358,1754896298787,154.16,0.0003136,30]
[378525359,1754896300688,460.0,0.0003136,30]
[378525360,1754896305594,460.0,0.0003136,30]
[378525361,1754896314946,460.0,0.0003136,30]
[378525362,1754896317338,460.0,0.0003136,30]
[378525363,1754896317582,460.0,0.0003136,30]
[378525364,1754896317860,460.0,0.0003136,30]
[378525365,1754896318106,262.22,0.0003136,30]
[378525366,1754896321534,460.0,0.0003136,30]
[378525367,1754896322422,460.0,0.0003136,30]
[378525368,1754896330960,460.0,0.0003136,30]
[378525369,1754896331357,460.0,0.0003136,30]
[378525370,1754896331545,2400.83861913,0.000199,2]
[378525371,1754896331759,317.81,0.0003136,30]
[378525372,1754896341833,460.0,0.0003136,30]
[378525373,1754896342268,460.0,0.0003136,30]
[378525374,1754896349105,460.0,0.0003136,30]
[378525375,1754896349360,460.0,0.0003136,30]
[378525376,1754896351506,460.0,0.0003136,30]
[378525377,1754896351932,460.0,0.0003136,30]
[378525378,1754896352742,460.0,0.0003136,30]
[378525379,1754896353118,460.0,0.0003136,30]
[378525380,1754896353550,460.0,0.0003136,30]
[378525381,1754896353613,460.0,0.0003136,30]
[378525382,1754896353860,460.0,0.0003136,30]
[378525383,1754896354258,460.0,0.0003136,30]
[378525384,1754896354785,537.86,0.0003136,30]
[378525385,1754896355604,460.0,0.0003136,30]
[378525386,1754896357398,460.0,0.0003136,30]
[378525387,1754896357668,460.0,0.0003136,30]
[378525388,1754896357847,460.0,0.0003136,30]
[378525389,1754896358115,556.95,0.0003136,30]
[378525390,1754896358353,460.0,0.0003136,30]
[378525391,1754896358740,460.0,0.0003136,30]
[378525392,1754896358873,460.0,0.0003136,30]
[378525393,1754896359148,303.59,0.0003136,30]
[378525394,1754896361016,460.0,0.0003136,30]
[378525395,1754896361265,460.0,0.0003136,30]
[378525396,1754896365498,460.0,0.0003136,30]
[378525397,1754896366305,460.0,0.0003136,30]
[378525398,1754896366566,460.0,0.0003136,30]
[378525399,1754896366795,460.0,0.0003136,30]
[378525400,1754896367036,509.94,0.0003136,30]
[378525401,1754896369522,460.0,0.0003136,30]
[378525402,1754896369755,460.0,0.0003136,30]
[378525403,1754896370340,460.0,0.0003136,30]
[378525404,1754896371023,460.0,0.0003136,30]
[378525405,1754896372165,460.0,0.0003136,30]
[378525406,1754896372559,460.0,0.0003136,30]
[378525407,1754896380366,460.0,0.0003136,30]
[378525408,1754896380611,460.0,0.0003136,30]
[378525409,1754896380958,460.0,0.0003136,30]
[378525410,1754896381330,460.0,0.0003136,30]
[378525411,1754896386816,460.0,0.0003136,30]
[378525412,1754896387139,460.0,0.0003136,30]
[378525413,1754896389054,460.0,0.0003136,30]
[378525414,1754896389278,460.0,0.0003136,30]
[378525415,1754896389332,460.0,0.0003136,30]
[378525416,1754896389561,460.0,0.0003136,30]
[378525417,1754896389611,460.0,0.0003136,30]
[378525418,1754896389807,460.0,0.0003136,30]
[378525419,1754896389905,460.0,0.0003136,30]
[378525420,1754896389985,543.76,0.0003136,30]
[378525421,1754896391053,1000.0,0.0003,120]
[378525422,1754896391110,460.0,0.0003136,30]
[378525423,1754896391892,460.0,0.0003136,30]
[378525424,1754896391942,460.0,0.0003136,30]
[378525425,1754896392122,460.0,0.0003136,30]
[378525426,1754896392428,1000.0,0.0003,120]
[378525427,1754896392504,460.0,0.0003136,30]
[378525428,1754896398206,460.0,0.0003136,30]
[378525429,1754896398443,460.0,0.0003136,30]
[378525430,1754896398953,460.0,0.0003136,30]
[378525431,1754896400016,460.0,0.0003136,30]
[378525432,1754896400483,460.0,0.0003136,30]
[378525433,1754896401278,460.0,0.0003136,30]
[378525434,1754896401599,460.0,0.0003136,30]
[378525435,1754896401974,460.0,0.0003136,30]
[378525436,1754896402025,460.0,0.0003136,30]
[378525437,1754896402077,460.0,0.0003136,30]
[378525438,1754896402251,460.0,0.0003136,30]
[378525439,1754896402543,460.0,0.0003136,30]
[378525440,1754896402593,460.0,0.0003136,30]
[378525441,1754896402784,594.3,0.0003136,30]
[378525442,1754896402836,537.86,0.0003136,30]
[378525443,1754896411477,460.0,0.0003136,30]
[378525444,1754896411788,460.0,0.0003136,30]
[378525445,1754896415480,460.0,0.0003136,30]
[378525446,1754896415713,460.0,0.0003136,30]
[378525447,1754896415807,484.23,0.0003136,30]
[378525448,1754896419275,460.0,0.0003136,30]
[378525449,1754896419525,460.0,0.0003136,30]
[378525450,1754896421393,460.0,0.0003136,30]
[378525451,1754896422014,460.0,0.0003136,30]
[378525452,1754896423130,460.0,0.0003136,30]
[378525453,1754896423237,460.0,0.0003136,30]
[378525454,1754896423375,460.0,0.0003136,30]
[378525455,1754896423484,460.0,0.0003136,30]
[378525456,1754896423812,460.0,0.0003136,30]
[378525457,1754896423862,279.86,0.0003136,30]
[378525458,1754896423914,460.0,0.0003136,30]
[378525459,1754896424174,460.0,0.0003136,30]
[378525460,1754896424431,460.0,0.0003136,30]